bitfinex/quotes_SOLUSD_20241103
["timestamp","ask_amount","ask_price","bid_price","bid_amount"]
[1730662274394,15.24152559,160.55,160.53,15.5734]
[1730662274569,15.24152559,160.54,160.51,6.5436722]
[1730662274772,15.24152559,160.55,160.51,22.1189722]
[1730662275790,15.24152559,160.56,160.51,22.1189722]
[1730662276097,15.24152559,160.58,160.52,15.24152559]
[1730662276478,15.24152559,160.57,160.51,37.36049779]
[1730662276679,15.24152559,160.56,160.51,22.1189722]
[1730662276884,15.24152559,160.57,160.51,37.36049779]
[1730662279595,15.24152559,160.59,160.53,15.24152559]
[1730662279793,15.24152559,160.61,160.55,15.24152559]
[1730662280801,15.24152559,160.61,160.56,6.2282]
[1730662281104,15.24152559,160.6,160.56,6.2282]
[1730662282003,15.24152559,160.6,160.55,21.7992]
[1730662282707,15.24152559,160.59,160.55,21.7992]
[1730662283201,15.24152559,160.56,160.55,15.5707]
[1730662283587,15.24152559,160.56,160.52,21.8038]
[1730662283777,15.24152559,160.55,160.52,21.8038]
[1730662284699,6.2274,160.58,160.52,21.8038]
[1730662284700,15.24152559,160.56,160.52,21.8038]
[1730662285205,11.37314663,160.74,160.52,21.8038]
[1730662285206,15.24152559,160.6,160.54,15.24152559]
[1730662285404,15.24152559,160.59,160.53,15.24152559]
[1730662286079,15.24152559,160.59,160.54,15.24152559]
[1730662286280,15.24152559,160.6,160.55,15.24152559]
[1730662286692,15.24152559,160.63,160.58,15.24152559]
[1730662286899,15.24152559,160.63,160.57,15.24152559]
[1730662287108,15.24152559,160.61,160.55,31.81852559]
[1730662287311,15.24152559,160.61,160.56,21.7987]
[1730662287485,15.24152559,160.61,160.56,37.04022559]
[1730662287816,15.24152559,160.6,160.56,21.7987]
[1730662287989,15.24152559,160.59,160.56,21.7987]
[1730662288182,15.24152559,160.58,160.56,21.7987]
[1730662288378,15.24152559,160.58,160.56,15.5705]
[1730662289496,15.24152559,160.58,160.53,21.8027]
[1730662290806,15.24152559,160.55,160.53,15.5734]
[1730662290995,15.24152559,160.54,160.53,15.5734]
[1730662291180,15.24152559,160.55,160.53,21.8027]
[1730662291386,15.24152559,160.56,160.53,21.8027]
[1730662292613,15.24152559,160.56,160.53,15.5734]
[1730662297140,15.24152559,160.57,160.53,15.5734]
[1730662302915,15.24152559,160.56,160.53,15.5734]
[1730662304418,15.24152559,160.57,160.53,15.5734]
[1730662305800,15.24152559,160.55,160.53,15.5734]
[1730662306226,15.24152559,160.55,160.52,6.2297]
[1730662306726,15.24152559,160.55,160.52,21.804]
[1730662306938,15.24152559,160.56,160.52,21.804]
[1730662307420,21.46932559,160.57,160.52,21.804]
[1730662308310,15.24152559,160.57,160.52,21.804]
[1730662309326,9.765238,160.57,160.52,21.804]
[1730662312527,9.765238,160.58,160.52,62.717938]
[1730662313209,9.765238,160.58,160.52,52.9527]
[1730662313414,9.765238,160.56,160.52,21.804]
[1730662313608,9.765238,160.55,160.52,21.804]
[1730662313808,9.765238,160.54,160.52,21.804]
[1730662314137,15.5656,160.61,160.52,21.804]
[1730662314138,9.765238,160.55,160.52,21.804]
[1730662314433,9.765238,160.57,160.52,21.804]
[1730662315460,6.35169,160.61,160.55,9.765238]
[1730662315461,9.765238,160.61,160.55,9.765238]
[1730662315809,9.765238,160.61,160.56,21.7987]
[1730662316112,9.765238,160.6,160.56,21.7987]
[1730662316726,9.765238,160.57,160.53,15.5729]
[1730662316928,9.765238,160.56,160.53,15.5729]
[1730662317434,9.765238,160.57,160.53,15.5729]
[1730662319036,9.765238,160.61,160.55,9.765238]
[1730662319227,9.765238,160.6,160.54,9.765238]
[1730662319405,9.765238,160.59,160.54,9.765238]
[1730662320311,9.765238,160.59,160.55,21.7999]
[1730662321028,9.765238,160.56,160.51,0.3138722]
[1730662321215,9.765238,160.56,160.52,21.8038]
[1730662321409,9.765238,160.55,160.52,21.8038]
[1730662321610,9.765238,160.54,160.52,21.8038]
[1730662321929,9.765238,160.55,160.52,21.8038]
[1730662322235,9.765238,160.56,160.52,21.8038]
[1730662323314,9.765238,160.57,160.52,31.569038]
[1730662323511,9.765238,160.54,160.52,15.5741]
[1730662323714,9.765238,160.54,160.51,0.3138722]
[1730662323928,6.4695,160.56,160.51,0.3138722]
[1730662324112,9.765238,160.52,160.51,0.3138722]
[1730662324520,45.927638,160.52,160.51,0.3138722]
[1730662325240,52.157338,160.52,160.51,0.3138722]
[1730662325443,57.66684778,160.52,160.51,0.3138722]
[1730662325737,57.66684778,160.52,160.43,15.8968722]
[1730662325738,43.902374,160.51,160.43,15.8968722]
[1730662325936,15.27474778,160.46,160.43,15.8968722]
[1730662326308,15.27474778,160.47,160.43,22.1300722]
[1730662326623,15.27474778,160.46,160.43,22.1300722]
[1730662327517,15.27474778,160.47,160.43,22.1300722]
[1730662330024,15.27474778,160.46,160.43,22.1300722]
[1730662331221,15.27474778,160.49,160.43,37.40481998]
[1730662331413,15.27474778,160.47,160.43,22.1300722]
[1730662331617,15.27474778,160.49,160.43,37.40481998]
[1730662332029,15.27474778,160.48,160.43,37.40481998]
[1730662332240,15.27474778,160.48,160.43,22.1300722]
[1730662332736,15.27474778,160.49,160.43,37.40481998]
[1730662333440,15.27474778,160.48,160.43,37.40481998]
[1730662333633,15.27474778,160.46,160.43,0.3138722]
[1730662334328,0.12549,160.49,160.43,0.3138722]
[1730662334329,15.27474778,160.45,160.43,0.3138722]
[1730662336845,15.27474778,160.47,160.43,6.5470722]
[1730662337342,15.27474778,160.48,160.43,22.1301722]
[1730662338541,6.2305,160.5,160.43,22.1301722]
[1730662338542,15.27474778,160.46,160.43,22.1301722]
[1730662338746,15.27474778,160.47,160.43,22.1301722]
[1730662342847,15.27474778,160.48,160.43,37.40491998]
[1730662343228,15.27474778,160.47,160.43,22.1301722]
[1730662343628,15.27474778,160.48,160.43,22.1301722]
[1730662344538,15.27474778,160.48,160.43,37.40491998]
[1730662344739,15.27474778,160.51,160.45,30.85584778]
[1730662344943,15.27474778,160.48,160.43,0.3138722]
[1730662345243,15.27474778,160.46,160.43,6.5470722]
[1730662345748,15.27474778,160.44,160.43,0.3138722]
[1730662345944,15.27474778,160.46,160.43,0.3138722]
[1730662347244,15.27474778,160.46,160.43,6.5470722]
[1730662347444,9.77840931,160.46,160.43,6.5470722]
[1730662347824,9.77840931,160.44,160.43,0.3138722]
[1730662348548,29.77840931,160.44,160.43,0.3138722]
[1730662349344,36.01120931,160.44,160.43,0.3138722]
[1730662349662,59.91358331,160.44,160.43,0.3138722]
[1730662350036,44.002374,160.43,160.34,6.5505722]
[1730662350341,9.77840931,160.37,160.34,6.5505722]
[1730662351329,44.002374,160.43,160.34,6.5505722]
[1730662351330,15.2966114,160.36,160.34,6.5505722]
[1730662351553,15.2966114,160.36,160.34,0.3138722]
[1730662353432,12.6215,160.39,160.34,0.3138722]
[1730662353433,15.2966114,160.35,160.34,0.3138722]
[1730662353642,15.2966114,160.36,160.34,0.3138722]
[1730662355049,15.2966114,160.38,160.34,6.5503722]
[1730662355245,21.5315114,160.39,160.34,6.5503722]
[1730662355467,15.2966114,160.39,160.34,22.1421722]
[1730662355948,15.2966114,160.38,160.34,22.1421722]
[1730662356137,15.2966114,160.39,160.34,22.1421722]
[1730662356537,15.2966114,160.38,160.34,22.1421722]
[1730662357240,15.2966114,160.39,160.34,22.1421722]
[1730662357935,15.2966114,160.41,160.35,15.2966114]
[1730662358932,15.2966114,160.41,160.36,21.8258]
[1730662360048,15.2966114,160.39,160.36,15.5899]
[1730662362155,6.2336,160.42,160.36,15.5899]
[1730662362156,15.2966114,160.41,160.36,15.5899]
[1730662362742,15.2966114,160.4,160.36,15.5899]
[1730662364154,15.2966114,160.4,160.36,21.8258]
[1730662367557,15.2966114,160.41,160.36,21.8258]
[1730662367759,15.2966114,160.42,160.37,15.2966114]
[1730662367940,15.2966114,160.43,160.37,15.2966114]
[1730662368345,15.2966114,160.42,160.36,37.1224114]
[1730662368556,15.2966114,160.4,160.36,21.8258]
[1730662369156,15.2966114,160.4,160.36,15.5899]
[1730662369859,15.2966114,160.41,160.36,15.5899]
[1730662370963,15.2966114,160.41,160.36,21.8258]
[1730662371461,9.78428139,160.41,160.36,21.8258]
[1730662372944,9.78428139,160.42,160.36,25.37418139]
[1730662373155,6.2328,160.44,160.37,9.78428139]
[1730662373156,9.78428139,160.43,160.37,9.78428139]
[1730662373958,9.78428139,160.42,160.36,25.37418139]
[1730662374353,9.78428139,160.43,160.37,9.78428139]
[1730662375066,9.78428139,160.39,160.36,6.2359]
[1730662375261,9.78428139,160.4,160.36,6.2359]
[1730662375966,9.78428139,160.42,160.36,31.61008139]
[1730662376662,9.78428139,160.43,160.37,9.78428139]
[1730662376865,9.78428139,160.43,160.38,21.823]
[1730662377247,9.78428139,160.42,160.38,21.823]
[1730662378971,9.78428139,160.43,160.38,21.823]
[1730662379271,9.78428139,160.46,160.4,9.78428139]
[1730662379479,9.78428139,160.43,160.38,62.78318139]
[1730662379951,9.78428139,160.44,160.38,62.78318139]
[1730662380152,9.78428139,160.44,160.39,9.78428139]
[1730662380774,20.0,160.46,160.41,9.78428139]
[1730662381263,29.78428139,160.46,160.4,31.60468139]
[1730662382655,9.78428139,160.45,160.4,21.8204]
[1730662382849,9.78428139,160.44,160.4,21.8204]
[1730662383055,9.78428139,160.45,160.4,21.8204]
[1730662383552,36.01638139,160.46,160.4,31.60468139]
[1730662383856,25.76428139,160.49,160.43,9.78428139]
[1730662384055,15.5738,160.53,160.4,52.9924]
[1730662384056,25.76428139,160.53,160.48,9.78428139]
[1730662384273,9.78428139,160.52,160.42,15.5976]
[1730662384456,9.78428139,160.52,160.46,9.78428139]
[1730662384863,15.89018139,160.55,160.49,9.78428139]
[1730662385358,9.78428139,160.54,160.48,9.78428139]
[1730662385673,6.1059,160.55,160.5,9.78428139]
[1730662385854,25.70818139,160.57,160.51,9.78428139]
[1730662386059,9.78428139,160.56,160.5,9.78428139]
[1730662386258,16.01168139,160.58,160.52,9.78428139]
[1730662386466,9.78428139,160.57,160.51,9.78428139]
[1730662386965,9.78428139,160.56,160.5,9.78428139]
[1730662387482,9.78428139,160.56,160.51,6.2301]
[1730662387676,9.78428139,160.57,160.51,31.58968139]
[1730662388875,9.78428139,160.53,160.48,15.578]
[1730662389466,9.78428139,160.5,160.45,15.5809]
[1730662389671,9.78428139,160.49,160.45,15.5809]
[1730662389872,85.9239,160.54,160.45,15.5809]
[1730662389873,9.78428139,160.5,160.45,15.5809]
[1730662390579,9.78428139,160.5,160.45,21.8133]
[1730662390771,16.01498139,160.5,160.45,21.8133]
[1730662390954,9.78428139,160.48,160.43,6.2329]
[1730662391382,15.27437534,160.48,160.43,37.09037534]
[1730662391560,15.27437534,160.49,160.43,37.09037534]
[1730662391880,15.27437534,160.48,160.43,37.09037534]
[1730662392568,15.27437534,160.48,160.43,21.816]
[1730662392881,15.27437534,160.45,160.43,15.5831]
[1730662393682,15.27437534,160.47,160.43,15.5831]
[1730662394180,15.27437534,160.47,160.43,21.8163]
[1730662394768,15.27437534,160.47,160.43,15.5831]
[1730662395266,15.27437534,160.49,160.43,15.5831]
[1730662396480,15.27437534,160.49,160.43,21.8163]
[1730662397461,15.27437534,160.48,160.43,21.8163]
[1730662398177,6.2301,160.51,160.43,15.5831]
[1730662398178,15.27437534,160.47,160.43,15.5831]
[1730662398500,15.27437534,160.46,160.43,15.5831]
[1730662398676,0.12549,160.5,160.43,21.8163]
[1730662398677,15.27437534,160.47,160.43,21.8163]
[1730662399789,15.27437534,160.47,160.43,15.5831]
[1730662399994,15.27437534,160.49,160.43,30.85747534]
[1730662400980,15.27437534,160.49,160.43,37.09067534]
[1730662401895,15.27437534,160.51,160.45,15.27437534]
[1730662403099,15.27437534,160.51,160.46,6.232]
[1730662403481,15.27437534,160.51,160.46,21.8122]
[1730662403894,15.27437534,160.55,160.49,15.27437534]
[1730662404401,15.27437534,160.54,160.48,15.27437534]
[1730662405310,15.27437534,160.54,160.49,6.2309]
[1730662405683,15.27437534,160.54,160.49,21.8081]
[1730662406187,6.4833,160.56,160.49,15.5772]
[1730662406188,15.27437534,160.53,160.49,15.5772]
[1730662406502,15.27437534,160.5,160.46,21.8118]
[1730662407385,15.27437534,160.51,160.45,15.27437534]
[1730662407902,15.27437534,160.5,160.44,15.27437534]
[1730662408605,15.27437534,160.5,160.45,6.2324]
[1730662408783,15.27437534,160.5,160.45,21.8135]
[1730662412715,15.27437534,160.46,160.42,6.2333]
[1730662412882,15.27437534,160.46,160.41,15.5844]
[1730662413088,15.27437534,160.43,160.39,6.2346]
[1730662413389,15.27437534,160.42,160.39,6.2346]
[1730662413591,15.27437534,160.43,160.39,6.2346]
[1730662413794,15.27437534,160.44,160.39,21.8216]
[1730662414410,15.27437534,160.43,160.39,21.8216]
[1730662415100,15.27437534,160.43,160.39,15.587]
[1730662415614,15.27437534,160.44,160.39,15.587]
[1730662416412,15.27437534,160.45,160.39,37.09617534]
[1730662416595,15.27437534,160.46,160.4,15.27437534]
[1730662416904,15.27437534,160.47,160.41,15.27437534]
[1730662417117,6.4833,160.5,160.39,21.8218]
[1730662417118,15.27437534,160.48,160.42,15.27437534]
[1730662417296,15.27437534,160.49,160.44,15.27437534]
[1730662417685,21.75767534,160.5,160.44,15.27437534]
[1730662417888,15.27437534,160.49,160.44,15.27437534]
[1730662418334,15.27437534,160.51,160.45,15.27437534]
[1730662418612,15.27437534,160.52,160.47,15.27437534]
[1730662418813,15.27437534,160.52,160.46,15.27437534]
[1730662419593,15.27437534,160.51,160.45,15.27437534]
[1730662420709,15.27437534,160.51,160.46,21.8122]
[1730662422213,70.0,160.53,160.43,15.27437534]
[1730662422514,70.0,160.53,160.43,21.8159]
[1730662422515,15.27437534,160.47,160.43,21.8159]
[1730662423108,15.27437534,160.46,160.43,15.5827]
[1730662423317,15.27437534,160.45,160.39,46.44837534]
[1730662423498,15.27437534,160.41,160.37,6.2352]
[1730662423697,15.27437534,160.4,160.37,6.2352]
[1730662424396,15.27437534,160.39,160.35,15.5901]
[1730662424900,21.8149,160.44,160.34,0.3138722]
[1730662424901,15.27437534,160.38,160.34,0.3138722]
[1730662425105,15.27437534,160.36,160.34,0.3138722]
[1730662425317,15.27437534,160.35,160.34,0.3138722]
[1730662426917,35.27437534,160.35,160.34,0.3138722]
[1730662427230,41.51067534,160.35,160.34,0.3138722]
[1730662427408,91.50517534,160.38,160.34,0.3138722]
[1730662427409,15.27437534,160.36,160.34,0.3138722]
[1730662427720,12.4661,160.38,160.34,0.3138722]
[1730662427721,15.27437534,160.35,160.34,0.3138722]
[1730662428694,6.2308,160.38,160.34,0.3138722]
[1730662428695,15.27437534,160.38,160.34,22.1423722]
[1730662428919,15.27437534,160.42,160.36,15.27437534]
[1730662429129,15.27437534,160.43,160.37,15.27437534]
[1730662429821,15.27437534,160.42,160.36,15.27437534]
[1730662430510,15.27437534,160.42,160.37,21.8244]
[1730662431115,15.27437534,160.43,160.37,37.09877534]
[1730662431626,20.0,160.42,160.37,37.09877534]
[1730662432305,35.27437534,160.42,160.37,21.8244]
[1730662433714,20.0,160.42,160.37,37.09877534]
[1730662437925,35.27437534,160.42,160.37,37.09877534]
[1730662438724,35.27437534,160.42,160.37,21.8244]
[1730662439307,35.27437534,160.42,160.37,37.09877534]
[1730662441230,15.27437534,160.42,160.37,37.09877534]
[1730662441606,15.27437534,160.43,160.37,37.09877534]
[1730662442117,15.27437534,160.45,160.39,15.27437534]
[1730662442427,21.50687534,160.45,160.39,15.27437534]
[1730662444031,21.50687534,160.45,160.4,6.2344]
[1730662445428,15.27437534,160.41,160.37,15.5889]
[1730662446127,15.27437534,160.4,160.37,15.5889]
[1730662446316,15.27437534,160.38,160.34,22.1421722]
[1730662446513,15.27437534,160.39,160.34,22.1421722]
[1730662446721,15.27437534,160.4,160.34,37.41654754]
[1730662447315,15.27437534,160.42,160.36,15.27437534]
[1730662449707,15.27437534,160.42,160.37,6.2355]
[1730662449912,20.0,160.45,160.4,15.27437534]
[1730662451012,35.27437534,160.45,160.4,6.2341]
[1730662451221,35.27437534,160.45,160.4,21.8201]
[1730662453835,16.35709225,160.48,160.42,15.27437534]
[1730662454008,7.31401691,160.48,160.43,15.27437534]
[1730662454212,6.5008333,160.51,160.47,15.27437534]
[1730662454436,21.50407534,160.53,160.47,15.27437534]
[1730662454636,23.0966,160.55,160.49,15.27437534]
[1730662454637,21.50337534,160.54,160.49,15.27437534]
[1730662455210,28.13537534,160.55,160.49,15.27437534]
[1730662455513,21.50267534,160.56,160.5,15.27437534]
[1730662455713,15.27437534,160.55,160.5,15.576]
[1730662456935,15.27437534,160.53,160.47,37.08487534]
[1730662457432,15.27437534,160.54,160.48,15.27437534]
[1730662457626,15.27437534,160.53,160.47,37.08487534]
[1730662458018,15.27437534,160.53,160.48,15.27437534]
[1730662458933,21.50387534,160.53,160.48,15.27437534]
[1730662459138,15.27437534,160.52,160.47,15.5789]
[1730662459326,15.27437534,160.51,160.47,15.5789]
[1730662461039,21.50427534,160.52,160.47,37.08487534]
[1730662461438,15.27437534,160.53,160.48,15.27437534]
[1730662461742,41.50287534,160.55,160.49,15.27437534]
[1730662461916,15.27437534,160.54,160.49,15.27437534]
[1730662462832,15.27437534,160.54,160.48,15.27437534]
[1730662465138,15.27437534,160.51,160.47,21.8105]
[1730662465338,15.27437534,160.53,160.47,37.08487534]
[1730662465835,15.27437534,160.53,160.48,15.27437534]
[1730662466220,15.27437534,160.53,160.47,15.27437534]
[1730662466836,15.27437534,160.54,160.44,52.9778]
[1730662467053,15.27437534,160.57,160.52,15.27437534]
[1730662467329,6.2274,160.58,160.52,15.27437534]
[1730662467330,21.50177534,160.58,160.52,15.27437534]
[1730662467535,15.27437534,160.6,160.54,15.27437534]
[1730662467938,21.50097534,160.6,160.54,15.27437534]
[1730662468535,15.27437534,160.59,160.55,6.2285]
[1730662468831,15.27437534,160.58,160.55,6.2285]
[1730662469419,15.27437534,160.58,160.54,15.5723]
[1730662469624,15.27437534,160.58,160.54,21.8012]
[1730662469821,15.27437534,160.56,160.54,15.5723]
[1730662470022,15.27437534,160.55,160.51,21.8051]
[1730662470224,15.27437534,160.56,160.51,37.07947534]
[1730662470432,15.27437534,160.57,160.51,37.07947534]
[1730662470641,21.50147534,160.59,160.53,15.27437534]
[1730662471135,15.27437534,160.57,160.51,37.07947534]
[1730662472041,21.50177534,160.58,160.52,15.27437534]
[1730662472252,15.27437534,160.58,160.52,15.27437534]
[1730662472745,15.27437534,160.57,160.52,15.27437534]
[1730662473848,15.27437534,160.57,160.51,37.07947534]
[1730662474344,15.27437534,160.58,160.52,15.27437534]
[1730662475434,15.27437534,160.58,160.53,21.8027]
[1730662478845,15.27437534,160.61,160.55,15.27437534]
[1730662479446,21.50057534,160.62,160.56,15.27437534]
[1730662479835,15.27437534,160.61,160.55,15.27437534]
[1730662480036,15.27437534,160.58,160.55,21.799]
[1730662480249,15.27437534,160.59,160.55,21.799]
[1730662481527,15.27437534,160.6,160.55,21.799]
[1730662481947,15.27437534,160.59,160.55,21.799]
[1730662482733,15.27437534,160.61,160.55,37.07337534]
[1730662483744,15.27437534,160.6,160.54,15.27437534]
[1730662485031,15.27437534,160.6,160.55,21.7999]
[1730662485429,15.27437534,160.59,160.55,21.7999]
[1730662485628,15.27437534,160.6,160.55,21.7999]
[1730662485851,15.27437534,160.59,160.55,21.7999]
[1730662487142,15.27437534,160.6,160.55,21.7999]
[1730662488352,15.27437534,160.59,160.55,21.7999]
[1730662488556,15.27437534,160.6,160.55,21.7999]
[1730662489061,21.50077534,160.61,160.55,37.07427534]
[1730662489257,15.27437534,160.6,160.55,21.7999]
[1730662489555,0.3138722,160.63,160.59,15.27437534]
[1730662490446,15.58824754,160.63,160.6,21.7932]
[1730662490848,0.3138722,160.63,160.6,21.7932]
[1730662492763,0.3138722,160.63,160.6,37.06757534]
[1730662497559,0.3138722,160.63,160.6,21.7932]
[1730662500061,15.58824754,160.63,160.6,15.5666]
[1730662500254,21.81374754,160.63,160.6,15.5666]
[1730662500455,15.27437534,160.62,160.6,15.5666]
[1730662501065,15.58824754,160.63,160.6,15.5666]
[1730662502677,0.3138722,160.63,160.6,15.5666]
[1730662503047,15.27437534,160.61,160.56,15.5697]
[1730662503250,15.27437534,160.57,160.51,12.71769731]
[1730662503549,20.0,160.6,160.51,6.2297]
[1730662503751,15.27437534,160.54,160.51,6.2297]
[1730662504159,15.27437534,160.54,160.51,21.805]
[1730662504547,15.27437534,160.54,160.51,15.5753]
[1730662504960,15.27437534,160.57,160.51,30.84967534]
[1730662505249,6.227,160.59,160.51,30.84967534]
[1730662505250,15.27437534,160.56,160.51,15.5753]
[1730662505764,15.27437534,160.55,160.51,15.5753]
[1730662508857,15.27437534,160.55,160.51,21.8054]
[1730662513080,15.27437534,160.55,160.51,15.5753]
[1730662514068,15.27437534,160.53,160.51,15.5753]
[1730662514272,6.2274,160.58,160.51,15.5753]
[1730662514273,15.27437534,160.52,160.51,15.5753]
[1730662514786,15.27437534,160.53,160.51,15.5753]
[1730662517470,9.76929139,160.55,160.51,15.5753]
[1730662517771,9.76929139,160.56,160.51,15.5753]
[1730662518271,9.76929139,160.55,160.51,15.5753]
[1730662519373,9.76929139,160.52,160.51,15.5753]
[1730662519562,9.76929139,160.54,160.51,15.5753]
[1730662519755,9.76929139,160.55,160.51,15.5753]
[1730662523077,9.76929139,160.54,160.51,15.5753]
[1730662523872,9.76929139,160.52,160.51,15.5753]
[1730662524186,9.76929139,160.52,160.49,6.2309]
[1730662524479,9.76929139,160.5,160.48,21.809]
[1730662524668,9.76929139,160.49,160.48,21.809]
[1730662525181,9.76929139,160.49,160.45,15.581]
[1730662525380,15.27748157,160.46,160.45,15.581]
[1730662525585,15.27748157,160.46,160.42,15.584]
[1730662525792,15.27748157,160.43,160.38,21.823]
[1730662526081,15.27748157,160.45,160.39,15.27748157]
[1730662526281,15.27748157,160.48,160.4,0.12549]
[1730662526481,15.27748157,160.48,160.43,15.27748157]
[1730662526673,15.27748157,160.47,160.42,15.27748157]
[1730662527365,15.27748157,160.47,160.43,21.8163]
[1730662529475,15.27748157,160.48,160.43,21.8163]
[1730662530186,20.0,160.51,160.43,21.8163]
[1730662530187,15.27748157,160.49,160.43,30.86058157]
[1730662530873,15.27748157,160.48,160.43,30.86058157]
[1730662531069,15.27748157,160.48,160.43,15.5831]
[1730662531384,15.27748157,160.5,160.44,15.27748157]
[1730662531688,15.27748157,160.51,160.46,15.27748157]
[1730662531869,15.27748157,160.49,160.43,46.56058157]
[1730662532180,15.27748157,160.48,160.43,52.79378157]
[1730662532584,15.27748157,160.49,160.43,52.79378157]
[1730662535190,15.27748157,160.48,160.43,52.79378157]
[1730662536393,15.27748157,160.45,160.43,21.8163]
[1730662536562,15.27748157,160.47,160.43,21.8163]
[1730662537485,15.27748157,160.46,160.43,15.5831]
[1730662538080,15.27748157,160.45,160.41,6.234]
[1730662538384,15.27748157,160.43,160.4,21.82]
[1730662538689,15.27748157,160.44,160.4,21.82]
[1730662538891,70.12549,160.5,160.41,15.27748157]
[1730662538892,15.27748157,160.47,160.41,15.27748157]
[1730662539472,15.27748157,160.46,160.4,37.09748157]
[1730662541776,15.27748157,160.42,160.4,21.82]
[1730662541972,6.2133,160.54,160.43,0.1]
[1730662542166,16.4835,160.56,160.5,15.27748157]
[1730662542581,16.4835,160.56,160.45,0.2]
[1730662542582,22.7118,160.56,160.45,0.12549]
[1730662542885,15.27748157,160.52,160.46,15.27748157]
[1730662543088,15.27748157,160.53,160.47,15.27748157]
[1730662543279,15.27748157,160.52,160.46,15.27748157]
[1730662543587,15.27748157,160.51,160.45,15.27748157]
[1730662543888,15.27748157,160.51,160.46,21.8122]
[1730662544085,15.27748157,160.51,160.46,37.08968157]
[1730662544283,15.27748157,160.52,160.46,37.08968157]
[1730662545087,21.50648157,160.54,160.48,15.27748157]
[1730662545287,15.99828065,160.54,160.48,9.76928065]
[1730662546391,15.99828065,160.54,160.49,6.2309]
[1730662548291,16.4835,160.56,160.42,0.1]
[1730662548490,6.2133,160.59,160.54,9.76928065]
[1730662548698,6.2133,160.59,160.56,9.76928065]
[1730662548870,6.2133,160.59,160.54,9.76928065]
[1730662549076,6.2133,160.59,160.48,21.69279]
[1730662549077,22.20958065,160.59,160.49,23.776884]
[1730662549484,15.98258065,160.59,160.49,23.776884]
[1730662550401,6.2133,160.59,160.54,15.99788065]
[1730662552477,16.4835,160.6,160.55,9.76928065]
[1730662552678,20.0,160.61,160.56,9.76928065]
[1730662552887,29.76928065,160.61,160.55,9.76928065]
[1730662553891,29.76928065,160.61,160.56,6.2282]
[1730662554087,9.76928065,160.59,160.54,21.8013]
[1730662554405,9.76348284,160.56,160.51,21.8048]
[1730662554779,20.0,160.58,160.52,9.76348284]
[1730662555279,20.0,160.58,160.51,21.8048]
[1730662555280,9.76348284,160.56,160.51,31.56828284]
[1730662555486,15.99188284,160.56,160.51,21.8048]
[1730662556186,15.99188284,160.56,160.51,31.56828284]
[1730662556488,20.0,160.57,160.52,9.76348284]
[1730662556686,29.76348284,160.57,160.51,31.56828284]
[1730662557376,35.99148284,160.57,160.51,31.56828284]
[1730662558823,35.99407489,160.57,160.51,25.34107489]
[1730662559809,9.76607489,160.54,160.49,6.2309]
[1730662559992,9.76607489,160.53,160.49,6.2309]
[1730662560296,6.5203,160.56,160.49,6.2309]
[1730662560297,9.76607489,160.54,160.49,6.2309]
[1730662560780,29.76607489,160.55,160.49,9.76607489]
[1730662560981,35.99457489,160.55,160.5,9.76607489]
[1730662561700,29.76607489,160.55,160.5,9.76607489]
[1730662562000,6.5203,160.56,160.51,9.76607489]
[1730662562202,6.5203,160.56,160.48,9.76607489]
[1730662562203,9.76607489,160.54,160.48,9.76607489]
[1730662562500,9.76607489,160.53,160.48,9.76607489]
[1730662562804,9.76607489,160.54,160.48,9.76607489]
[1730662562994,9.76607489,160.54,160.49,6.2309]
[1730662563303,9.76607489,160.54,160.49,21.8081]
[1730662563811,9.76607489,160.53,160.49,21.8081]
[1730662564499,9.76607489,160.54,160.49,21.8081]
[1730662565207,9.76607489,160.52,160.49,15.5772]
[1730662566390,9.76607489,160.52,160.48,6.2309]
[1730662566596,9.76607489,160.52,160.47,6.2314]
[1730662566793,15.99547489,160.53,160.47,15.99747489]
[1730662567090,26.229,160.54,160.5,6.2305]
[1730662567896,9.76607489,160.53,160.49,6.2309]
[1730662568512,9.76607489,160.51,160.47,21.8108]
[1730662568693,35.99507489,160.54,160.48,9.76607489]
[1730662568896,9.76607489,160.53,160.47,31.57687489]
[1730662569906,20.0,160.54,160.5,9.76607489]
[1730662570096,20.0,160.55,160.5,9.76607489]
[1730662570691,9.76607489,160.58,160.52,9.76607489]
[1730662570892,9.76607489,160.59,160.53,9.76607489]
[1730662571123,9.76607489,160.57,160.51,9.76607489]
[1730662571494,15.99387489,160.57,160.52,6.2297]
[1730662571887,9.76607489,160.57,160.52,21.804]
[1730662573509,15.99397489,160.57,160.52,21.804]
[1730662573711,9.76607489,160.56,160.52,21.804]
[1730662574508,9.76607489,160.59,160.53,9.76607489]